[Event "Cracovia Chess Festival A 2021"]
[Site "Cracow"]
[Date "2022.01.02"]
[Round "7.3"]
[White "Horvath, Dominik"]
[Black "Pniaczek, Marek"]
[Result "1-0"]
[ECO "C88"]
[WhiteElo "2478"]
[BlackElo "2329"]
[Annotator "ChessBase"]
[PlyCount "63"]
[EventDate "2021.12.27"]
[EventCountry "POL"]
[SourceTitle "playchess.com"]
[Source "ChessBase"]
[SourceQuality "1"]
[TimeControl "40/5400+30:1800+30"]

1. e4 {[%emt 0:00:13]} e5 {[%emt 0:00:04]} 2. Nf3 {[%emt 0:00:04]} Nc6 {[%emt 0:00:02]} 3. Bb5 {[%emt 0:00:05]} a6 {[%emt 0:00:04]} 4. Ba4 {[%emt 0:00:02]} Nf6 {[%emt 0:00:06]} 5. O-O {[%emt 0:00:03]} Be7 {[%emt 0:00:07]} 6. Re1 {[%emt 0:00:04]} b5 {[%emt 0:00:03]} 7. Bb3 {[%emt 0:00:04]} O-O {[%emt 0:00:04]} 8. a4 {[%emt 0:00:03]} Bb7 {[%emt 0:01:15]} 9. d3 {[%emt 0:00:06]} d6 {[%emt 0:00:04]} 10. Bd2 {[%emt 0:00:04]} Qd7 {[%emt 0:01:16]} 11. h3 {[%emt 0:01:43]} h6 {[%emt 0:00:51]} 12. Nc3 {[%emt 0:00:33]} Na5 {[%emt 0:00:23]} 13. Ba2 {[%emt 0:00:32]} c5 {[%emt 0:01:32]} 14. Ne2 {[%emt 0:08:19]} Nc6 {[%emt 0:01:20]} 15. Ng3 {[%emt 0:00:04]} Rfe8 {[%emt 0:07:06]} 16. Nh2 {[%emt 0:07:11]} Bf8 {[%emt 0:01:53]} 17. Nh5 {[%emt 0:07:32]} Qe7 {[%emt 0:17:25]} 18. Re3 {[%emt 0:02:33]} Nd8 {[%emt 0:24:00]} 19. Rg3 {[%emt 0:01:04]} Kh8 {[%emt 0:03:02]} 20. Nxf6 {[%emt 0:04:29]} Qxf6 {[%emt 0:00:09]} 21. Ng4 {[%emt 0:00:05]} Qh4 {[%emt 0:01:59]} 22. Qf3 {[%emt 0:00:42]} Be7 {[%emt 0:06:24]} 23. Ne3 {[%emt 0:01:00]} Bc8 {[%emt 0:05:48]} 24. Bd5 {[%emt 0:01:37]} Rb8 {[%emt 0:01:05]} 25. axb5 {[%emt 0:00:11]} axb5 {[%emt 0:00:21]} 26. Ra7 {[%emt 0:00:16]} Be6 {[%emt 0:03:01]} 27. Nf5 {[%emt 0:01:12]} Bxf5 {[%emt 0:00:27]} 28. Qxf5 {[%emt 0:00:17]} Bf6 {[%emt 0:02:41]} 29. Rg4 {[%emt 0:00:15]} g6 {[%emt 0:00:52]} 30. Qd7 {[%emt 0:00:14]} Re7 {[%emt 0:00:25]} 31. Rxh4 {[%emt 0:00:44]} Rxd7 {[%emt 0:00:05]} 32. Rxh6+ {[%emt 0:00:03]} 1-0

[Event "Cracovia Chess Festival A 2021"]
[Site "Cracow"]
[Date "2022.01.02"]
[Round "7.4"]
[White "Jarmula, Lukasz"]
[Black "Cukrowski, Filip"]
[Result "1-0"]
[ECO "D02"]
[WhiteElo "2426"]
[BlackElo "2367"]
[Annotator "ChessBase"]
[PlyCount "38"]
[EventDate "2021.12.27"]
[EventCountry "POL"]
[SourceTitle "playchess.com"]
[Source "ChessBase"]
[SourceQuality "1"]
[TimeControl "40/5400+30:1800+30"]

1. d4 {[%emt 0:00:02]} d5 {[%emt 0:11:29]} 2. Nf3 {[%emt 0:00:14]} Nf6 {[%emt 0:00:06]} 3. Bf4 {[%emt 0:01:44]} c5 {[%emt 0:07:41]} 4. e3 {[%emt 0:00:09]} Nc6 {[%emt 0:06:20]} 5. Be2 {[%emt 0:00:46]} cxd4 {[%emt 0:00:25]} 6. exd4 {[%emt 0:00:12]} g6 {[%emt 0:00:07]} 7. Nbd2 {[%emt 0:02:18]} Bg7 {[%emt 0:00:26]} 8. O-O {[%emt 0:01:26]} O-O {[%emt 0:00:05]} 9. c3 {[%emt 0:00:28]} Nh5 {[%emt 0:04:50]} 10. Be3 {[%emt 0:00:35]} Qc7 {[%emt 0:00:36]} 11. Re1 {[%emt 0:00:41]} Bd7 {[%emt 0:14:45]} 12. b4 {[%emt 0:05:58]} Nf6 {[%emt 0:05:57]} 13. h3 {[%emt 0:03:45]} Rad8 {[%emt 0:18:05]} 14. a4 {[%emt 0:07:47]} e5 {[%emt 0:01:13]} 15. dxe5 {[%emt 0:12:59]} Ne4 {[%emt 0:01:05]} 16. Rc1 {[%emt 0:00:37]} Nxe5 {[%emt 0:00:30]} 17. Bd4 {[%emt 0:01:13]} Nxf3+ {[%emt 0:02:46]} 18. Bxf3 {[%emt 0:03:56]} Bh6 {[%emt 0:09:33]} 19. Bxe4 {[%emt 0:02:32]} Bxa4 1-0

[Event "Cracovia Chess Festival A 2021"]
[Site "Cracow"]
[Date "2022.01.02"]
[Round "7.5"]
[White "Chakravarthi Reddy, M."]
[Black "Golubka, Petro"]
[Result "1/2-1/2"]
[ECO "E12"]
[WhiteElo "2342"]
[BlackElo "2408"]
[Annotator "ChessBase"]
[PlyCount "101"]
[EventDate "2021.12.27"]
[EventCountry "POL"]
[SourceTitle "playchess.com"]
[Source "ChessBase"]
[SourceQuality "1"]
[TimeControl "40/5400+30:1800+30"]

1. d4 {[%emt 0:03:12]} Nf6 {[%emt 0:07:35]} 2. c4 {[%emt 0:01:12]} e6 {[%emt 0:01:01]} 3. Nf3 {[%emt 0:00:03]} b6 {[%emt 0:00:04]} 4. a3 {[%emt 0:00:05]} Bb7 {[%emt 0:01:35]} 5. Nc3 {[%emt 0:00:30]} Ne4 {[%emt 0:00:11]} 6. Nxe4 {[%emt 0:08:41]} Bxe4 {[%emt 0:00:02]} 7. Nd2 {[%emt 0:00:06]} Bg6 {[%emt 0:00:07]} 8. g3 {[%emt 0:01:35]} Nc6 {[%emt 0:00:26]} 9. e3 {[%emt 0:00:10]} Be7 {[%emt 0:05:44]} 10. Bg2 {[%emt 0:00:13]} O-O {[%emt 0:00:47]} 11. b4 {[%emt 0:01:53]} Rb8 {[%emt 0:01:17]} 12. Bb2 {[%emt 0:00:53]} a5 {[%emt 0:00:44]} 13. d5 {[%emt 0:06:14]} Na7 {[%emt 0:02:28]} 14. O-O {[%emt 0:01:01]} axb4 {[%emt 0:04:02]} 15. axb4 {[%emt 0:00:05]} Nc8 {[%emt 0:00:05]} 16. Qb3 {[%emt 0:04:22]} Bf6 {[%emt 0:02:38]} 17. e4 {[%emt 0:00:41]} Bxb2 {[%emt 0:00:22]} 18. Qxb2 {[%emt 0:00:04]} f6 {[%emt 0:03:53]} 19. f4 {[%emt 0:01:03]} Nd6 {[%emt 0:00:44]} 20. Rfe1 {[%emt 0:02:10]} h5 {[%emt 0:07:09]} 21. dxe6 {[%emt 0:27:20]} dxe6 {[%emt 0:02:08]} 22. e5 {[%emt 0:00:29]} fxe5 {[%emt 0:01:22]} 23. Qxe5 {[%emt 0:00:04]} Bf5 {[%emt 0:02:29]} 24. Rad1 {[%emt 0:09:56]} Qf6 {[%emt 0:00:52]} 25. Qxf6 {[%emt 0:02:17]} gxf6 {[%emt 0:01:22]} 26. Bf3 {[%emt 0:01:01]} Bg4 {[%emt 0:01:18]} 27. Bxg4 {[%emt 0:00:25]} hxg4 {[%emt 0:00:13]} 28. Rxe6 {[%emt 0:00:34]} Rbd8 {[%emt 0:05:43]} 29. Ree1 {[%emt 0:05:49]} Kf7 {[%emt 0:02:50]} 30. c5 {[%emt 0:08:55]} Nf5 {[%emt 0:09:56]} 31. Nb3 {[%emt 0:02:08]} Rfe8 {[%emt 0:02:45]} 32. Kf2 {[%emt 0:00:48]} Rxd1 {[%emt 0:06:12]} 33. Rxd1 {[%emt 0:00:18]} Re4 {[%emt 0:03:30]} 34. Rd7+ {[%emt 0:00:46]} Kg6 {[%emt 0:01:45]} 35. Rxc7 {[%emt 0:02:20]} Rxb4 {[%emt 0:00:08]} 36. Nd2 {[%emt 0:00:54]} Rb2 {[%emt 0:00:29]} 37. Ke1 {[%emt 0:00:44]} bxc5 {[%emt 0:02:24]} 38. Rxc5 {[%emt 0:00:04]} Ra2 {[%emt 0:01:58]} 39. Rc3 {[%emt 0:02:40]} Rb2 {[%emt 0:01:52]} 40. Rd3 {[%emt 0:00:00]} Ra2 {[%emt 0:00:00]} 41. Ke2 {[%emt 0:01:37]} Rb2 {[%emt 0:01:09]} 42. Rd8 {[%emt 0:00:17]} Kf7 {[%emt 0:00:59]} 43. Kd3 {[%emt 0:02:05]} Ra2 {[%emt 0:02:28]} 44. Rb8 {[%emt 0:06:38]} Nd6 {[%emt 0:01:18]} 45. Rd8 {[%emt 0:02:17]} Nf5 {[%emt 0:00:33]} 46. Rc8 {[%emt 0:07:06]} Ra3+ {[%emt 0:01:08]} 47. Rc3 {[%emt 0:00:14]} Ra4 {[%emt 0:00:40]} 48. Rc7+ {[%emt 0:01:16]} Kg6 {[%emt 0:02:24]} 49. Rc4 {[%emt 0:03:46]} Ra3+ {[%emt 0:01:29]} 50. Rc3 {[%emt 0:00:04]} Ra4 {[%emt 0:00:06]} 51. Rc4 {[%emt 0:00:10]} 1/2-1/2

[Event "Cracovia Chess Festival A 2021"]
[Site "Cracow"]
[Date "2022.01.02"]
[Round "7.6"]
[White "Dzida, Kamil"]
[Black "Zylka, Stanislaw"]
[Result "0-1"]
[ECO "C11"]
[WhiteElo "2238"]
[BlackElo "2406"]
[Annotator "ChessBase"]
[PlyCount "56"]
[EventDate "2021.12.27"]
[EventCountry "POL"]
[SourceTitle "playchess.com"]
[Source "ChessBase"]
[SourceQuality "1"]
[TimeControl "40/5400+30:1800+30"]

1. e4 {[%emt 0:00:02]} e6 {[%emt 0:00:30]} 2. d4 {[%emt 0:00:07]} d5 {[%emt 0:00:09]} 3. Nc3 {[%emt 0:00:11]} Nf6 {[%emt 0:00:10]} 4. e5 {[%emt 0:00:05]} Nfd7 {[%emt 0:00:04]} 5. f4 {[%emt 0:00:08]} c5 {[%emt 0:00:04]} 6. Nf3 {[%emt 0:00:08]} Nc6 {[%emt 0:00:08]} 7. Be3 {[%emt 0:00:14]} Be7 {[%emt 0:00:06]} 8. Qd2 {[%emt 0:00:22]} O-O {[%emt 0:00:10]} 9. dxc5 {[%emt 0:01:50]} Qa5 {[%emt 0:00:38]} 10. O-O-O {[%emt 0:02:44]} b6 {[%emt 0:00:47]} 11. Bb5 {[%emt 0:09:34]} Nb4 {[%emt 0:00:18]} 12. a3 {[%emt 0:20:11]} bxc5 {[%emt 0:00:21]} 13. Kb1 {[%emt 0:08:02]} Rb8 {[%emt 0:00:21]} 14. Bxd7 {[%emt 0:06:18]} Bxd7 {[%emt 0:00:21]} 15. Ne4 {[%emt 0:01:46]} dxe4 {[%emt 0:05:46]} 16. axb4 {[%emt 0:00:12]} Rxb4 {[%emt 0:00:25]} 17. Qc3 {[%emt 0:03:27]} Bc6 {[%emt 0:01:43]} 18. Nd2 {[%emt 0:00:17]} Bd5 {[%emt 0:00:40]} 19. Nb3 {[%emt 0:00:34]} Qb5 {[%emt 0:01:12]} 20. f5 {[%emt 0:03:11]} Rb8 {[%emt 0:01:32]} 21. Bc1 {[%emt 0:00:21]} Bxb3 {[%emt 0:06:49]} 22. f6 {[%emt 0:00:05]} Bf8 {[%emt 0:00:33]} 23. cxb3 {[%emt 0:00:04]} Rxb3 {[%emt 0:00:14]} 24. Qc2 {[%emt 0:00:12]} c4 {[%emt 0:00:18]} 25. Rhf1 {[%emt 0:01:23]} c3 {[%emt 0:03:29]} 26. fxg7 {[%emt 0:00:02]} Bxg7 {[%emt 0:00:24]} 27. Qf2 {[%emt 0:00:09]} Kh8 {[%emt 0:00:35]} 28. h4 {[%emt 0:04:01]} e3 {[%emt 0:01:03]} 0-1

[Event "Cracovia Chess Festival A 2021"]
[Site "Cracow"]
[Date "2022.01.02"]
[Round "7.7"]
[White "Kacprzak, Kacper"]
[Black "Pacan-Milej, Kosma"]
[Result "1/2-1/2"]
[ECO "B15"]
[WhiteElo "2219"]
[BlackElo "2401"]
[Annotator "ChessBase"]
[PlyCount "35"]
[EventDate "2021.12.27"]
[EventCountry "POL"]
[SourceTitle "playchess.com"]
[Source "ChessBase"]
[SourceQuality "1"]
[TimeControl "40/5400+30:1800+30"]

1. e4 {[%emt 0:00:12]} c6 {[%emt 0:00:14]} 2. d4 {[%emt 0:00:06]} d5 {[%emt 0:00:05]} 3. Nc3 {[%emt 0:00:05]} dxe4 {[%emt 0:00:06]} 4. Nxe4 {[%emt 0:00:05]} Nf6 {[%emt 0:00:06]} 5. Nxf6+ {[%emt 0:01:52]} exf6 {[%emt 0:00:05]} 6. c3 {[%emt 0:00:05]} Bd6 {[%emt 0:00:10]} 7. Bd3 {[%emt 0:00:14]} O-O {[%emt 0:00:23]} 8. Qc2 {[%emt 0:00:33]} Re8+ {[%emt 0:00:13]} 9. Ne2 {[%emt 0:00:09]} h5 {[%emt 0:00:41]} 10. O-O {[%emt 0:02:17]} h4 {[%emt 0:02:06]} 11. h3 {[%emt 0:05:47]} Nd7 {[%emt 0:02:47]} 12. Bd2 {[%emt 0:02:34]} Nf8 {[%emt 0:02:23]} 13. Rae1 {[%emt 0:02:51]} Be6 {[%emt 0:07:20]} 14. f4 {[%emt 0:02:34]} c5 {[%emt 0:16:29]} 15. Kh1 {[%emt 0:03:57]} Rc8 {[%emt 0:12:23]} 16. c4 {[%emt 0:12:57]} Qc7 {[%emt 0:17:13]} 17. b3 {[%emt 0:16:19]} Bd7 {[%emt 0:09:50]} 18. Qb1 {[%emt 0:09:00]} 1/2-1/2

[Event "Cracovia Chess Festival A 2021"]
[Site "Cracow"]
[Date "2022.01.02"]
[Round "7.9"]
[White "Gahan M G"]
[Black "Danielyan, Vahe"]
[Result "1/2-1/2"]
[ECO "C44"]
[WhiteElo "2248"]
[BlackElo "2332"]
[Annotator "ChessBase"]
[PlyCount "37"]
[EventDate "2021.12.27"]
[EventCountry "POL"]
[SourceTitle "playchess.com"]
[Source "ChessBase"]
[SourceQuality "1"]
[TimeControl "40/5400+30:1800+30"]

1. e4 {[%emt 0:00:36]} e5 {[%emt 0:00:45]} 2. Nf3 {[%emt 0:00:07]} Nc6 {[%emt 0:00:04]} 3. d4 {[%emt 0:00:04]} exd4 {[%emt 0:00:07]} 4. Nxd4 {[%emt 0:00:02]} Bb4+ {[%emt 0:00:07]} 5. Nc3 {[%emt 0:00:31]} Nf6 {[%emt 0:00:07]} 6. Nxc6 {[%emt 0:00:05]} bxc6 {[%emt 0:00:03]} 7. Bd3 {[%emt 0:00:04]} d5 {[%emt 0:00:02]} 8. exd5 {[%emt 0:00:07]} O-O {[%emt 0:00:05]} 9. O-O {[%emt 0:00:13]} cxd5 {[%emt 0:00:03]} 10. Bg5 {[%emt 0:00:05]} c6 {[%emt 0:00:04]} 11. Qf3 {[%emt 0:00:05]} Bd6 {[%emt 0:00:04]} 12. Rae1 {[%emt 0:00:11]} Rb8 {[%emt 0:00:37]} 13. b3 {[%emt 0:00:10]} Rb4 {[%emt 0:00:24]} 14. h3 {[%emt 0:00:35]} a5 {[%emt 0:00:41]} 15. Ne2 {[%emt 0:01:42]} Bc7 {[%emt 0:03:42]} 16. Ng3 {[%emt 0:03:53]} Qd6 {[%emt 0:00:26]} 17. Bxf6 {[%emt 0:01:34]} Qxf6 {[%emt 0:01:53]} 18. Qxf6 {[%emt 0:00:07]} gxf6 {[%emt 0:00:04]} 19. Re7 {[%emt 0:03:40]} 1/2-1/2

[Event "Cracovia Chess Festival A 2021"]
[Site "Cracow"]
[Date "2022.01.02"]
[Round "7.10"]
[White "Dev, Shah"]
[Black "Sengupta, Deep"]
[Result "0-1"]
[ECO "A40"]
[WhiteElo "2243"]
[BlackElo "2520"]
[Annotator "ChessBase"]
[PlyCount "58"]
[EventDate "2021.12.27"]
[EventCountry "POL"]
[SourceTitle "playchess.com"]
[Source "ChessBase"]
[SourceQuality "1"]
[TimeControl "40/5400+30:1800+30"]

1. d4 {[%emt 0:00:07]} b6 {[%emt 0:00:54]} 2. c4 {[%emt 0:00:12]} Bb7 {[%emt 0:00:04]} 3. Nf3 {[%emt 0:02:43]} e6 {[%emt 0:00:33]} 4. g3 {[%emt 0:01:05]} c5 {[%emt 0:01:25]} 5. d5 {[%emt 0:01:31]} b5 {[%emt 0:01:05]} 6. e4 {[%emt 0:04:43]} Ne7 {[%emt 0:39:26]} 7. Nc3 {[%emt 0:08:52]} b4 {[%emt 0:10:03]} 8. Nb5 {[%emt 0:03:09]} Ng6 {[%emt 0:02:52]} 9. d6 {[%emt 0:01:07]} Na6 {[%emt 0:00:04]} 10. Qd3 {[%emt 0:17:45]} Qb6 {[%emt 0:02:56]} 11. Be3 {[%emt 0:05:02]} Rc8 {[%emt 0:00:48]} 12. Bg2 {[%emt 0:03:47]} f6 {[%emt 0:00:52]} 13. h4 {[%emt 0:01:32]} h5 {[%emt 0:00:03]} 14. O-O {[%emt 0:05:31]} Nb8 {[%emt 0:07:13]} 15. e5 {[%emt 0:02:02]} Kf7 {[%emt 0:00:03]} 16. exf6 {[%emt 0:01:40]} gxf6 {[%emt 0:00:07]} 17. a4 {[%emt 0:02:30]} Bxf3 {[%emt 0:07:35]} 18. Bxf3 {[%emt 0:07:21]} Ne5 {[%emt 0:00:08]} 19. Qe2 {[%emt 0:00:22]} Nxf3+ {[%emt 0:00:05]} 20. Qxf3 {[%emt 0:00:06]} a6 {[%emt 0:00:10]} 21. a5 {[%emt 0:00:28]} Qc6 {[%emt 0:00:09]} 22. Qe2 {[%emt 0:02:54]} Qb7 {[%emt 0:12:48]} 23. Rfd1 {[%emt 0:01:13]} Nc6 {[%emt 0:00:03]} 24. Bxc5 {[%emt 0:01:26]} Ne5 {[%emt 0:00:27]} 25. f4 {[%emt 0:01:22]} Rxc5 {[%emt 0:03:22]} 26. fxe5 {[%emt 0:00:08]} Rxe5 {[%emt 0:00:15]} 27. Qf1 {[%emt 0:01:31]} axb5 {[%emt 0:01:51]} 28. a6 {[%emt 0:00:33]} Qa7+ {[%emt 0:00:26]} 29. Kh2 {[%emt 0:00:12]} Rf5 {[%emt 0:00:52]} 0-1

[Event "Cracovia Chess Festival A 2021"]
[Site "Cracow"]
[Date "2022.01.02"]
[Round "7.11"]
[White "Luberanski, Jakub"]
[Black "Niedbala, Bartlomiej"]
[Result "0-1"]
[ECO "A50"]
[WhiteElo "2166"]
[BlackElo "2385"]
[Annotator "ChessBase"]
[PlyCount "98"]
[EventDate "2021.12.27"]
[EventCountry "POL"]
[SourceTitle "playchess.com"]
[Source "ChessBase"]
[SourceQuality "1"]
[TimeControl "40/5400+30:1800+30"]

1. d4 {[%emt 0:00:08]} Nf6 {[%emt 0:01:46]} 2. c4 {[%emt 0:00:06]} a6 {[%emt 0:00:04]} 3. Nc3 {[%emt 0:00:25]} c5 {[%emt 0:00:50]} 4. dxc5 {[%emt 0:11:04]} e6 {[%emt 0:03:44]} 5. e4 {[%emt 0:03:34]} Nc6 {[%emt 0:05:46]} 6. Be3 {[%emt 0:07:29]} Qa5 {[%emt 0:01:15]} 7. Qa4 {[%emt 0:03:31]} Qxa4 {[%emt 0:02:14]} 8. Nxa4 {[%emt 0:01:06]} Nxe4 {[%emt 0:00:39]} 9. f3 {[%emt 0:06:53]} Nf6 {[%emt 0:00:07]} 10. O-O-O {[%emt 0:00:24]} Be7 {[%emt 0:06:07]} 11. Nb6 {[%emt 0:00:25]} Rb8 {[%emt 0:00:06]} 12. Nh3 {[%emt 0:13:51]} Bd8 {[%emt 0:01:53]} 13. Rd6 {[%emt 0:03:40]} Ke7 {[%emt 0:05:23]} 14. Rd2 {[%emt 0:19:49]} Bxb6 {[%emt 0:05:49]} 15. cxb6 {[%emt 0:01:01]} d6 {[%emt 0:00:34]} 16. Be2 {[%emt 0:00:04]} e5 {[%emt 0:01:17]} 17. Nf2 {[%emt 0:00:54]} Be6 {[%emt 0:06:51]} 18. Ne4 {[%emt 0:00:33]} Nxe4 {[%emt 0:04:24]} 19. fxe4 {[%emt 0:00:03]} Rbc8 {[%emt 0:00:44]} 20. b3 {[%emt 0:00:45]} Nb8 {[%emt 0:01:39]} 21. a4 {[%emt 0:08:31]} a5 {[%emt 0:04:18]} 22. Rhd1 {[%emt 0:01:24]} Rc6 {[%emt 0:03:25]} 23. Rd5 {[%emt 0:02:29]} Bxd5 {[%emt 0:02:36]} 24. Rxd5 {[%emt 0:00:04]} Nd7 {[%emt 0:05:42]} 25. Rxa5 {[%emt 0:00:06]} Nc5 {[%emt 0:05:31]} 26. Kc2 {[%emt 0:06:20]} Nxe4 {[%emt 0:06:26]} 27. Bf3 {[%emt 0:00:41]} f5 {[%emt 0:00:20]} 28. Ra7 {[%emt 0:00:04]} Rb8 {[%emt 0:00:11]} 29. a5 {[%emt 0:07:24]} d5 {[%emt 0:02:40]} 30. a6 {[%emt 0:00:14]} d4 {[%emt 0:00:30]} 31. Bxe4 {[%emt 0:02:14]} fxe4 {[%emt 0:00:16]} 32. Bg5+ {[%emt 0:00:07]} Kd7 {[%emt 0:00:42]} 33. axb7 {[%emt 0:00:35]} Rxb6 {[%emt 0:00:05]} 34. Ra5 {[%emt 0:00:15]} Ke6 {[%emt 0:00:25]} 35. Bh4 {[%emt 0:00:11]} R8xb7 {[%emt 0:04:03]} 36. Bg3 {[%emt 0:00:12]} Rxb3 {[%emt 0:00:45]} 37. Rxe5+ {[%emt 0:00:04]} Kf7 {[%emt 0:01:21]} 38. Rxe4 {[%emt 0:00:09]} Rc3+ {[%emt 0:00:12]} 39. Kd1 {[%emt 0:00:39]} Rb1+ {[%emt 0:01:07]} 40. Kd2 {[%emt 0:00:00]} Rb2+ {[%emt 0:00:00]} 41. Kd1 {[%emt 0:00:40]} Rxc4 {[%emt 0:01:53]} 42. Rf4+ {[%emt 0:00:12]} Kg8 {[%emt 0:01:09]} 43. Bf2 {[%emt 0:00:27]} Ra4 {[%emt 0:04:33]} 44. Kc1 {[%emt 0:00:38]} Raa2 {[%emt 0:00:21]} 45. Bxd4 {[%emt 0:00:38]} Rxg2 {[%emt 0:00:03]} 46. h4 {[%emt 0:00:04]} Rh2 {[%emt 0:01:35]} 47. Kb1 {[%emt 0:00:26]} Rae2 {[%emt 0:00:24]} 48. Rf1 {[%emt 0:01:21]} Rxh4 {[%emt 0:00:31]} 49. Bc5 {[%emt 0:02:01]} h6 {[%emt 0:00:56]} 0-1

[Event "Cracovia Chess Festival A 2021"]
[Site "Cracow"]
[Date "2022.01.02"]
[Round "7.12"]
[White "Lewtak, Damian"]
[Black "Luczak, Filip"]
[Result "1/2-1/2"]
[ECO "C01"]
[WhiteElo "2383"]
[BlackElo "2273"]
[Annotator "ChessBase"]
[PlyCount "49"]
[EventDate "2021.12.27"]
[EventCountry "POL"]
[SourceTitle "playchess.com"]
[Source "ChessBase"]
[SourceQuality "1"]
[TimeControl "40/5400+30:1800+30"]

1. d4 {[%emt 0:00:04]} e6 {[%emt 0:05:35]} 2. e4 {[%emt 0:00:12]} d5 {[%emt 0:00:03]} 3. exd5 {[%emt 0:00:12]} exd5 {[%emt 0:00:06]} 4. Nf3 {[%emt 0:00:05]} Nf6 {[%emt 0:02:15]} 5. c4 {[%emt 0:00:19]} Be7 {[%emt 0:03:55]} 6. Bd3 {[%emt 0:00:30]} dxc4 {[%emt 0:04:49]} 7. Bxc4 {[%emt 0:00:07]} O-O {[%emt 0:00:42]} 8. h3 {[%emt 0:04:07]} Bf5 {[%emt 0:11:01]} 9. O-O {[%emt 0:00:11]} Nbd7 {[%emt 0:01:32]} 10. Nh4 {[%emt 0:01:55]} Bg6 {[%emt 0:08:11]} 11. Nxg6 {[%emt 0:02:17]} hxg6 {[%emt 0:00:33]} 12. Nc3 {[%emt 0:00:06]} Nb6 {[%emt 0:00:06]} 13. Bb3 {[%emt 0:00:08]} c6 {[%emt 0:02:16]} 14. Qd3 {[%emt 0:02:21]} Nbd5 {[%emt 0:01:54]} 15. Bg5 {[%emt 0:00:25]} Qd7 {[%emt 0:03:18]} 16. Rad1 {[%emt 0:01:33]} Rad8 {[%emt 0:02:49]} 17. Rfe1 {[%emt 0:01:20]} Rfe8 {[%emt 0:02:45]} 18. Re5 {[%emt 0:01:25]} Nxc3 {[%emt 0:03:48]} 19. bxc3 {[%emt 0:01:23]} Nd5 {[%emt 0:00:49]} 20. Bd2 {[%emt 0:01:45]} Bd6 {[%emt 0:02:54]} 21. Ree1 {[%emt 0:01:29]} Rxe1+ {[%emt 0:02:30]} 22. Rxe1 {[%emt 0:00:07]} Re8 {[%emt 0:00:24]} 23. Rxe8+ {[%emt 0:01:39]} Qxe8 {[%emt 0:00:32]} 24. Kf1 {[%emt 0:00:40]} Kf8 {[%emt 0:04:01]} 25. g3 {[%emt 0:06:43]} 1/2-1/2

[Event "Cracovia Chess Festival A 2021"]
[Site "Cracow"]
[Date "2022.01.02"]
[Round "7.13"]
[White "Sinz, Bernhard"]
[Black "Kacprzak, Karol"]
[Result "0-1"]
[ECO "B99"]
[WhiteElo "2330"]
[BlackElo "2226"]
[Annotator "ChessBase"]
[PlyCount "48"]
[EventDate "2021.12.27"]
[EventCountry "POL"]
[SourceTitle "playchess.com"]
[Source "ChessBase"]
[SourceQuality "1"]
[TimeControl "40/5400+30:1800+30"]

1. e4 {[%emt 0:00:04]} c5 {[%emt 0:00:13]} 2. Nf3 {[%emt 0:00:15]} d6 {[%emt 0:00:20]} 3. d4 {[%emt 0:00:09]} cxd4 {[%emt 0:00:06]} 4. Nxd4 {[%emt 0:00:08]} Nf6 {[%emt 0:00:06]} 5. Nc3 {[%emt 0:00:11]} a6 {[%emt 0:00:06]} 6. Bg5 {[%emt 0:00:27]} e6 {[%emt 0:00:19]} 7. f4 {[%emt 0:00:23]} Be7 {[%emt 0:00:13]} 8. Qf3 {[%emt 0:00:24]} Qc7 {[%emt 0:00:11]} 9. O-O-O {[%emt 0:00:25]} Nbd7 {[%emt 0:00:13]} 10. f5 {[%emt 0:00:45]} e5 {[%emt 0:01:04]} 11. Nde2 {[%emt 0:00:20]} b5 {[%emt 0:00:42]} 12. Bxf6 {[%emt 0:00:24]} Nxf6 {[%emt 0:00:06]} 13. Nd5 {[%emt 0:00:16]} Nxd5 {[%emt 0:00:07]} 14. exd5 {[%emt 0:00:10]} b4 {[%emt 0:00:04]} 15. Ng3 {[%emt 0:05:52]} O-O {[%emt 0:00:48]} 16. Kb1 {[%emt 0:05:16]} f6 {[%emt 0:05:27]} 17. h4 {[%emt 0:21:16]} Bd7 {[%emt 0:12:02]} 18. Ne4 {[%emt 0:04:35]} a5 {[%emt 0:02:10]} 19. g4 {[%emt 0:03:26]} a4 {[%emt 0:03:32]} 20. b3 {[%emt 0:04:53]} axb3 {[%emt 0:04:42]} 21. cxb3 {[%emt 0:00:30]} Rxa2 {[%emt 0:01:36]} 22. Bc4 {[%emt 0:03:24]} Qa7 {[%emt 0:07:49]} 23. Rhf1 {[%emt 0:07:10]} Ra8 {[%emt 0:07:11]} 24. g5 {[%emt 0:06:25]} Rh2 {[%emt 0:01:03]} 0-1

[Event "Cracovia Chess Festival A 2021"]
[Site "Cracow"]
[Date "2022.01.02"]
[Round "7.14"]
[White "Karsay, Pascal"]
[Black "Vardanyan, Aras"]
[Result "1/2-1/2"]
[ECO "A04"]
[WhiteElo "2322"]
[BlackElo "2222"]
[Annotator "ChessBase"]
[PlyCount "58"]
[EventDate "2021.12.27"]
[EventCountry "POL"]
[SourceTitle "playchess.com"]
[Source "ChessBase"]
[SourceQuality "1"]
[TimeControl "40/5400+30:1800+30"]

1. Nf3 {[%emt 0:00:03]} d6 {[%emt 0:00:09]} 2. d4 {[%emt 0:00:11]} g6 {[%emt 0:01:13]} 3. e4 {[%emt 0:00:09]} Bg7 {[%emt 0:00:05]} 4. Bc4 {[%emt 0:00:45]} Nf6 {[%emt 0:01:43]} 5. Qe2 {[%emt 0:00:08]} c6 {[%emt 0:00:40]} 6. e5 {[%emt 0:00:39]} Nd5 {[%emt 0:00:09]} 7. h3 {[%emt 0:00:26]} O-O {[%emt 0:00:28]} 8. O-O {[%emt 0:00:09]} a5 {[%emt 0:01:55]} 9. a4 {[%emt 0:01:06]} Na6 {[%emt 0:02:37]} 10. Rd1 {[%emt 0:09:18]} Nac7 {[%emt 0:02:42]} 11. Ra3 {[%emt 0:05:07]} Qe8 {[%emt 0:05:39]} 12. Rb3 {[%emt 0:12:24]} b5 {[%emt 0:05:08]} 13. Bxd5 {[%emt 0:05:40]} Nxd5 {[%emt 0:01:34]} 14. Nc3 {[%emt 0:01:02]} b4 {[%emt 0:05:44]} 15. Nxd5 {[%emt 0:01:26]} cxd5 {[%emt 0:00:33]} 16. Bg5 {[%emt 0:05:36]} f6 {[%emt 0:11:15]} 17. exf6 {[%emt 0:05:38]} exf6 {[%emt 0:02:25]} 18. Qxe8 {[%emt 0:00:08]} Rxe8 {[%emt 0:00:07]} 19. Bf4 {[%emt 0:01:17]} Bf5 {[%emt 0:13:36]} 20. Rd2 {[%emt 0:01:28]} Bd7 {[%emt 0:01:02]} 21. Re3 {[%emt 0:02:24]} Bxa4 {[%emt 0:01:13]} 22. Rxe8+ {[%emt 0:02:14]} Rxe8 {[%emt 0:00:56]} 23. b3 {[%emt 0:00:11]} Bd7 {[%emt 0:00:23]} 24. Bxd6 {[%emt 0:00:10]} Rc8 {[%emt 0:05:09]} 25. Ne1 {[%emt 0:03:35]} Bb5 {[%emt 0:07:37]} 26. Nd3 {[%emt 0:11:51]} Bxd3 {[%emt 0:00:50]} 27. cxd3 {[%emt 0:00:10]} Bf8 {[%emt 0:10:37]} 28. Bxf8 {[%emt 0:00:39]} Kxf8 {[%emt 0:00:04]} 29. Ra2 {[%emt 0:00:08]} Rc1+ {[%emt 0:05:38]} 1/2-1/2